bitfinex-derivatives/quotes_SOLF0:USTF0_20260203
["timestamp","ask_amount","ask_price","bid_price","bid_amount"]
[1770099434695,39.46074936,103.08,103.03,45.37739824]
[1770099434898,42.47466283,103.08,103.03,45.37739824]
[1770099435193,51.21406283,103.08,103.03,45.37739824]
[1770099435788,42.47466283,103.08,103.03,45.37739824]
[1770099437296,42.47466283,103.08,103.03,54.12089824]
[1770099438789,387.24,103.09,103.04,45.37739824]
[1770099438995,387.24,103.09,103.05,45.37739824]
[1770099439699,387.24,103.09,103.05,54.11919824]
[1770099439901,390.25391347,103.09,103.05,54.11919824]
[1770099440799,387.24,103.09,103.05,54.11919824]
[1770099444498,387.24,103.09,103.06,8.741]
[1770099446507,425.5955694,103.09,103.05,54.11929824]
[1770099448908,38.3555694,103.09,103.05,54.11929824]
[1770099449510,41.36948287,103.09,103.05,8.7419]
[1770099450008,38.3555694,103.09,103.05,8.7419]
[1770099452106,38.3555694,103.09,103.05,57.12247447]
[1770099456009,390.17401092,103.1,103.05,57.12247447]
[1770099456219,387.16,103.1,103.05,57.12247447]
[1770099456419,425.4453628,103.1,103.05,57.12247447]
[1770099457518,425.4453628,103.1,103.06,8.741]
[1770099460716,40.93809932,103.12,103.07,57.12077447]
[1770099461411,40.93809932,103.12,103.07,48.38057447]
[1770099462011,40.93809932,103.12,103.07,57.12057447]
[1770099463524,40.98597151,103.11,103.05,48.38057447]
[1770099464221,40.98597151,103.11,103.06,57.12157447]
[1770099466123,428.22132635,103.13,103.07,48.38057447]
[1770099466625,387.12,103.13,103.08,51.39458539]
[1770099467119,38.13903893,103.15,103.09,51.39458539]
[1770099468025,3.01401092,103.14,103.09,48.38057447]
[1770099468420,41.15304985,103.15,103.09,48.38057447]
[1770099468620,41.15304985,103.15,103.09,57.11827447]
[1770099468918,3.01401092,103.14,103.09,57.11827447]
[1770099469123,40.8520687,103.14,103.09,57.11827447]
[1770099469425,40.86820315,103.13,103.09,8.7377]
[1770099469817,37.85419223,103.13,103.09,8.7377]
[1770099471223,49.60497719,103.15,103.09,55.73912801]
[1770099471424,40.87157719,103.15,103.1,8.7376]
[1770099471924,40.87157719,103.15,103.1,55.73902801]
[1770099473023,40.93510832,103.14,103.09,8.7384]
[1770099473420,3.01401092,103.13,103.09,8.7384]
[1770099473620,40.94895066,103.13,103.09,8.7384]
[1770099475226,37.93493974,103.13,103.09,55.73982801]
[1770099478032,39.32813194,103.14,103.09,55.73982801]
[1770099478533,36.31412102,103.14,103.1,55.73862801]
[1770099480535,39.32813194,103.14,103.1,8.7372]
[1770099480836,39.32813194,103.14,103.09,8.7384]
[1770099482438,39.32813194,103.14,103.09,55.73982801]
[1770099482641,36.31412102,103.14,103.1,55.73892801]
[1770099483236,44.82600272,103.16,103.1,55.73892801]
[1770099483537,47.84001364,103.16,103.1,55.73892801]
[1770099484740,36.45650917,103.18,103.12,50.01543893]
[1770099485838,36.45650917,103.18,103.13,8.7351]
[1770099486038,36.45650917,103.18,103.12,50.01543893]
[1770099486539,36.45650917,103.18,103.12,58.75123893]
[1770099488235,39.47052009,103.18,103.12,58.75123893]
[1770099488434,39.47052009,103.18,103.12,55.73722801]
[1770099489234,36.45650917,103.18,103.13,55.73622801]
[1770099489438,39.5544475,103.2,103.13,50.01543893]
[1770099489941,39.5544475,103.19,103.13,50.01543893]
[1770099490342,40.26846391,103.18,103.13,47.00142801]
[1770099491441,37.25445299,103.18,103.13,47.00142801]
[1770099491742,40.26846391,103.18,103.13,47.00142801]
[1770099492735,37.25445299,103.18,103.13,47.00142801]
[1770099493434,37.25445299,103.18,103.13,55.73652801]
[1770099493744,37.25445299,103.18,103.13,47.00142801]
[1770099494543,37.25445299,103.18,103.14,8.7342]
[1770099495341,3.01401092,103.19,103.15,8.7334]
[1770099495743,426.63966402,103.2,103.15,8.7334]
[1770099496042,426.63966402,103.2,103.15,55.73482801]
[1770099496344,423.6256531,103.2,103.15,55.73482801]
[1770099496546,36.6856531,103.2,103.15,55.73482801]
[1770099497142,39.69966402,103.2,103.15,55.73482801]
[1770099499040,36.6856531,103.2,103.15,55.73482801]
[1770099499249,39.69966402,103.2,103.15,55.73482801]
[1770099499548,36.28544484,103.18,103.12,47.00142801]
[1770099499749,39.29945576,103.18,103.12,47.00142801]
[1770099499950,36.28544484,103.18,103.13,47.00142801]
[1770099500150,36.28544484,103.18,103.14,8.7341]
[1770099501048,39.35348725,103.15,103.1,58.49431113]
[1770099501750,36.34960163,103.16,103.11,8.7362]
[1770099501945,36.34960163,103.16,103.11,49.75671113]
[1770099502146,40.15437552,103.18,103.12,49.75671113]
[1770099502544,386.84,103.19,103.13,58.49171113]
[1770099502749,426.99437552,103.19,103.13,49.75671113]
[1770099503345,3.01401092,103.18,103.13,49.75671113]
[1770099504052,3.01401092,103.18,103.13,58.49171113]
[1770099504847,426.99437552,103.19,103.13,58.49171113]
[1770099507548,423.9803646,103.19,103.13,61.50572205]
[1770099507750,37.1403646,103.19,103.14,58.49091113]
[1770099508349,37.1403646,103.19,103.14,61.50492205]
[1770099508756,37.1403646,103.19,103.14,58.49091113]
[1770099509254,427.72613828,103.21,103.15,58.49001113]
[1770099509655,37.87212736,103.2,103.15,58.49001113]
[1770099514459,40.87965105,103.2,103.15,58.49001113]
[1770099514959,37.87212736,103.2,103.15,58.49001113]
[1770099515258,37.87212736,103.2,103.15,49.75671113]
[1770099515958,37.87212736,103.2,103.15,58.48991113]
[1770099519963,37.87212736,103.2,103.16,8.7323]
[1770099521563,37.87212736,103.2,103.16,58.48901113]
[1770099522363,39.75422776,103.21,103.16,58.48901113]
[1770099522564,36.74670407,103.21,103.16,58.48901113]
[1770099525361,38.27249102,103.23,103.18,49.75671113]
[1770099525662,36.5858725,103.24,103.19,49.75671113]
[1770099526254,36.5858725,103.24,103.2,8.7291]
[1770099527663,36.5858725,103.24,103.19,49.75671113]
[1770099528363,36.5858725,103.24,103.19,58.48671113]
[1770099528562,36.5858725,103.24,103.19,52.76423482]
[1770099530458,423.38107666,103.26,103.2,48.52998199]
[1770099530763,36.66107666,103.26,103.21,49.73951937]
[1770099531464,36.66107666,103.26,103.21,46.73199568]
[1770099532461,36.66107666,103.26,103.21,55.46019568]
[1770099532661,3.00752369,103.27,103.21,55.46019568]
[1770099532861,39.4835297,103.27,103.21,55.46019568]
[1770099533266,3.00752369,103.26,103.21,46.73199568]
[1770099534362,39.4835297,103.27,103.21,55.46019568]
[1770099534766,3.00752369,103.26,103.21,55.46019568]
[1770099534968,39.4835297,103.27,103.21,55.46019568]
[1770099535362,39.46632451,103.28,103.23,46.73199568]
[1770099536165,39.46632451,103.28,103.23,55.45859568]
[1770099536365,36.45880082,103.28,103.23,55.45859568]
[1770099537163,386.64,103.3,103.25,46.73199568]
[1770099537364,39.68850664,103.33,103.27,46.73199568]
[1770099537569,36.68098295,103.33,103.27,49.73951937]
[1770099537766,36.68098295,103.35,103.3,46.73199568]
[1770099537963,36.68098295,103.37,103.3,49.73951937]
[1770099538162,3.00752369,103.38,103.31,46.73199568]
[1770099538368,39.69125551,103.37,103.31,46.73199568]
[1770099538568,39.69125551,103.39,103.33,46.73199568]
[1770099539165,39.69125551,103.39,103.3,135.6551]
[1770099539166,39.69125551,103.37,103.31,46.73199568]
[1770099539365,3.00752369,103.35,103.31,46.73199568]
[1770099540173,3.00752369,103.34,103.29,46.73199568]
[1770099540772,3.00752369,103.33,103.29,46.73199568]
[1770099541370,3.00752369,103.35,103.29,46.73199568]
[1770099541571,39.89824068,103.35,103.29,46.73199568]
[1770099543469,39.89824068,103.35,103.29,58.46081937]
[1770099543672,36.89071699,103.35,103.3,46.73199568]
[1770099545372,39.81970786,103.38,103.31,49.73951937]
[1770099546074,39.81970786,103.38,103.32,46.73199568]
[1770099547375,389.40752369,103.39,103.33,49.73951937]
[1770099547569,386.4,103.39,103.33,49.73951937]
[1770099548270,386.4,103.39,103.33,58.45761937]
[1770099548475,36.57171833,103.4,103.34,49.73951937]
[1770099549072,36.57171833,103.4,103.35,3.00752369]
[1770099549270,39.35263179,103.44,103.37,49.73951937]
[1770099550273,39.35263179,103.44,103.38,46.73199568]
[1770099550573,36.3451081,103.44,103.39,49.73951937]
[1770099550778,425.20397112,103.46,103.39,49.73951937]
[1770099551175,35.93644743,103.46,103.4,49.73951937]
[1770099551471,3.00752369,103.45,103.4,46.73199568]
[1770099551778,3.00752369,103.44,103.38,46.73199568]
[1770099552075,38.94900267,103.43,103.38,46.73199568]
[1770099552274,32.57146319,103.45,103.38,46.73199568]
[1770099552475,29.5639395,103.45,103.39,3.00752369]
[1770099552777,29.5639395,103.45,103.4,46.73199568]
[1770099553181,386.22,103.46,103.4,49.73951937]
[1770099553374,32.57590384,103.46,103.4,46.73199568]
[1770099556484,29.56838015,103.46,103.4,49.73951937]
[1770099556685,29.56838015,103.46,103.41,46.73199568]
[1770099556882,417.92271647,103.48,103.41,49.73951937]
[1770099557084,389.08752369,103.48,103.41,49.73951937]
[1770099557289,28.83924433,103.5,103.44,49.73951937]
[1770099557484,28.83924433,103.5,103.44,46.73199568]
[1770099559284,11.71062369,103.51,103.44,46.73199568]
[1770099559285,31.60066123,103.49,103.44,46.73199568]
[1770099559684,3.00752369,103.48,103.41,3.00752369]
[1770099559889,3.00752369,103.47,103.42,46.73199568]
[1770099560686,3.00752369,103.47,103.4,48.6723747]
[1770099560687,28.16946778,103.46,103.4,48.6723747]
[1770099560887,28.16946778,103.46,103.4,51.67989839]
[1770099561089,28.16946778,103.46,103.4,60.39209839]
[1770099561286,39.88815467,103.48,103.42,48.6723747]
[1770099562790,3.00752369,103.47,103.42,48.6723747]
[1770099564395,39.88805467,103.48,103.42,48.6723747]
[1770099565797,3.00752369,103.47,103.42,48.6723747]
[1770099566393,39.88805467,103.48,103.42,48.6723747]
[1770099566797,385.84,103.49,103.42,48.6723747]
[1770099566993,3.00752369,103.51,103.44,51.67989839]
[1770099567190,27.74114294,103.51,103.44,51.67989839]
[1770099567390,8.704,103.5,103.44,48.6723747]
[1770099567898,11.71152369,103.5,103.44,51.67989839]
[1770099568197,11.71152369,103.5,103.44,48.6723747]
[1770099568801,11.71152369,103.5,103.44,51.67989839]
[1770099568995,8.704,103.5,103.44,51.67989839]
[1770099569196,27.74114294,103.51,103.4,468.28]
[1770099569197,388.82752369,103.52,103.46,48.6723747]
[1770099569499,3.00752369,103.5,103.44,48.6723747]
[1770099569700,30.68835754,103.51,103.44,48.6723747]
[1770099570298,8.7039,103.5,103.44,48.6723747]
[1770099570497,3.00752369,103.49,103.44,48.6723747]
[1770099570700,3.00752369,103.49,103.42,48.6723747]
[1770099570701,31.09843973,103.48,103.42,48.6723747]
[1770099570900,11.71422369,103.47,103.42,48.6723747]
[1770099571093,3.00752369,103.46,103.42,48.6723747]
[1770099571297,3.00752369,103.47,103.42,48.6723747]
[1770099572302,8.7073,103.46,103.42,48.6723747]
[1770099573695,8.7082,103.45,103.42,34.1132747]
[1770099573900,8.7082,103.45,103.39,2.99226876]
[1770099574293,8.7082,103.45,103.4,2.99226876]
[1770099576001,8.7082,103.45,103.41,48.6723747]
[1770099576594,180.92278496,103.47,103.41,48.6723747]
[1770099576595,388.73226876,103.48,103.41,51.66464346]
[1770099576799,385.74,103.48,103.43,48.6723747]
[1770099577203,52.95956089,103.49,103.43,48.6723747]
[1770099577500,52.95956089,103.48,103.43,48.6723747]
[1770099578400,52.95956089,103.47,103.41,48.6723747]
[1770099578709,52.95956089,103.46,103.39,51.66464346]
[1770099579695,49.96729213,103.46,103.39,48.6723747]
[1770099579899,49.96729213,103.46,103.41,48.6723747]
[1770099580299,333.84729213,103.48,103.43,48.6723747]
[1770099580499,49.96729213,103.48,103.43,48.6723747]
[1770099582497,447.40346089,103.5,103.43,51.66464346]
[1770099583192,61.66346089,103.5,103.43,51.66464346]
[1770099583504,52.95956089,103.5,103.43,51.66464346]
[1770099583802,49.96729213,103.5,103.44,51.66464346]
[1770099584510,49.96729213,103.52,103.47,51.66464346]
[1770099584706,52.95956089,103.54,103.47,51.66464346]
[1770099586003,52.95956089,103.56,103.49,51.66464346]
[1770099586205,49.96729213,103.56,103.5,51.66464346]
[1770099586408,49.96729213,103.56,103.51,51.66464346]
[1770099586704,447.37746089,103.58,103.51,51.66464346]
[1770099587001,438.67956089,103.58,103.51,51.66464346]
[1770099587604,49.96729213,103.57,103.51,51.66464346]
[1770099587906,52.95956089,103.57,103.51,48.6723747]
[1770099588101,2.99226876,103.56,103.51,48.6723747]
[1770099588510,49.96729213,103.57,103.51,48.6723747]
[1770099589510,49.96729213,103.59,103.51,48.6723747]
[1770099592110,435.54729213,103.59,103.51,48.6723747]
[1770099592307,440.12879748,103.58,103.51,48.6723747]
[1770099592508,47.10171335,103.57,103.51,48.6723747]
[1770099592811,47.10171335,103.55,103.47,50.43015186]
[1770099594911,55.80151335,103.55,103.47,50.43015186]
[1770099595212,47.10171335,103.55,103.47,50.43015186]
[1770099595605,47.10171335,103.55,103.47,59.13645186]
[1770099598109,55.80141335,103.55,103.47,59.13645186]
[1770099600011,47.10171335,103.55,103.47,59.13645186]
[1770099600805,47.10171335,103.55,103.47,50.43015186]
[1770099601107,47.10171335,103.52,103.47,50.43015186]
[1770099601710,47.10171335,103.54,103.47,50.43015186]
[1770099603113,55.80221335,103.54,103.47,50.43015186]
[1770099603314,47.10171335,103.54,103.47,59.13645186]
[1770099604911,432.60171335,103.55,103.49,59.13485186]
[1770099607219,47.10171335,103.55,103.49,50.43015186]
[1770099608022,47.10171335,103.55,103.49,59.13485186]
[1770099608520,54.56879748,103.55,103.46,50.43015186]
[1770099608724,54.56879748,103.55,103.46,59.13655186]
[1770099609322,54.56879748,103.55,103.46,50.43015186]
[1770099609820,63.26849748,103.55,103.48,50.43015186]
[1770099610121,47.10171335,103.54,103.48,50.43015186]
[1770099610417,2.98910015,103.52,103.48,50.43015186]
[1770099612320,2.98910015,103.53,103.48,50.43015186]
[1770099615415,58.7925135,103.53,103.48,50.43015186]
[1770099615922,2.98910015,103.54,103.48,53.41925201]
[1770099616225,2.98910015,103.54,103.48,50.43015186]
[1770099616427,2.98910015,103.53,103.48,50.43015186]
[1770099617525,2.98910015,103.53,103.48,59.13565186]
[1770099619622,2.98910015,103.53,103.49,59.13485186]
[1770099620116,47.10171335,103.55,103.49,59.13485186]
[1770099620117,2.98910015,103.54,103.49,59.13485186]
[1770099621729,50.0908135,103.55,103.49,59.13485186]
[1770099622424,385.48,103.57,103.5,57.80732708]
[1770099622625,47.78896485,103.58,103.51,52.09272723]
[1770099622626,50.778065,103.58,103.51,52.09272723]
[1770099623232,2.98910015,103.57,103.51,52.09272723]
[1770099623627,433.26896485,103.6,103.53,49.10362708]
[1770099623823,2.98910015,103.61,103.55,49.10362708]
[1770099624029,50.778065,103.61,103.55,52.09272723]
[1770099624331,50.778065,103.61,103.55,49.10362708]
[1770099625121,47.78896485,103.6,103.55,49.10362708]
[1770099625329,2.98910015,103.59,103.55,49.10362708]
[1770099625527,2.98910015,103.58,103.52,49.10362708]
[1770099627532,2.98910015,103.58,103.53,8.7013]
[1770099628834,2.98910015,103.58,103.52,52.09272723]
[1770099629837,50.778065,103.59,103.52,60.79442723]
[1770099630134,50.778065,103.59,103.53,52.09272723]
[1770099630335,47.78896485,103.59,103.53,52.09272723]
[1770099630731,47.78896485,103.59,103.52,8.7017]
[1770099630732,436.198065,103.61,103.55,49.10362708]
[1770099631236,50.778065,103.61,103.55,49.10362708]
[1770099632544,2.98428382,103.6,103.55,49.10362708]
[1770099633244,50.77324867,103.61,103.55,49.10362708]
[1770099635142,2.98428382,103.59,103.54,8.7001]
[1770099635744,50.77324867,103.59,103.54,8.7001]
[1770099635949,50.77324867,103.57,103.51,49.10362708]
[1770099636341,2.98428382,103.58,103.52,49.10362708]
[1770099637257,50.77324867,103.58,103.52,49.10362708]
[1770099637454,47.78896485,103.58,103.52,49.10362708]
[1770099637654,47.78896485,103.58,103.52,60.7899109]
[1770099637853,50.77324867,103.6,103.54,49.10362708]
[1770099638452,47.78896485,103.6,103.54,49.10362708]
[1770099641257,56.48446485,103.6,103.54,49.10362708]
[1770099641760,47.78896485,103.6,103.54,49.10362708]
[1770099643360,385.32,103.61,103.54,57.80392708]
[1770099644260,47.78896485,103.62,103.54,57.80392708]
[1770099644852,47.78896485,103.62,103.54,49.10362708]
[1770099645058,55.2517971,103.62,103.54,49.10362708]
[1770099645255,47.78896485,103.62,103.54,49.10362708]
[1770099646562,56.48286485,103.62,103.54,49.10362708]
[1770099649962,56.48356485,103.61,103.54,49.10362708]
[1770099650954,60.5468152,103.6,103.54,49.10362708]
[1770099653760,8.6964,103.59,103.54,49.10362708]
[1770099653960,51.8513152,103.6,103.54,49.10362708]
[1770099654865,60.5475152,103.6,103.54,49.10362708]
[1770099655365,8.6964,103.59,103.54,49.10362708]
[1770099657462,60.5490152,103.58,103.54,49.10362708]
[1770099657666,51.8513152,103.58,103.52,53.66195534]
[1770099658265,135.3039,103.57,103.52,53.66195534]
[1770099658564,54.83780836,103.58,103.52,53.66195534]
[1770099659366,8.698,103.57,103.52,53.66195534]
[1770099659965,190.12800836,103.58,103.52,53.66195534]
[1770099660267,2.98649316,103.57,103.52,53.66195534]
[1770099660466,2.98649316,103.57,103.49,26.6288269]
[1770099660467,8.7004,103.55,103.5,53.66195534]
[1770099660673,2.98649316,103.54,103.5,38.90385534]
[1770099660962,2.98649316,103.54,103.44,346.2841269]
[1770099660963,54.83780836,103.53,103.44,346.2841269]
[1770099661160,2.98649316,103.52,103.46,2.98649316]
[1770099661356,11.68879316,103.52,103.45,11.69379316]
[1770099661563,54.83780836,103.51,103.44,2.98649316]
[1770099662766,54.83780836,103.51,103.45,53.66195534]
[1770099663070,2.98649316,103.49,103.45,53.66195534]
[1770099663465,2.98649316,103.48,103.43,53.66195534]
[1770099664367,51.8513152,103.49,103.43,56.6484485]
[1770099664570,2.98649316,103.5,103.43,56.6484485]
[1770099664766,54.83780836,103.5,103.43,56.6484485]
[1770099664967,51.8513152,103.5,103.44,56.6484485]
[1770099665171,261.56083504,103.53,103.44,53.66195534]
[1770099665370,78.64085275,103.57,103.5,2.98649316]
[1770099665568,78.64085275,103.55,103.46,153.3684269]
[1770099665767,78.64085275,103.54,103.47,2.98649316]
[1770099665967,75.65435959,103.53,103.47,2.98649316]
[1770099666473,75.65435959,103.53,103.48,2.98649316]
[1770099666662,75.65435959,103.53,103.49,2.98649316]
[1770099666866,75.65435959,103.53,103.48,2.98649316]
[1770099667066,75.65435959,103.53,103.45,212.5377]
[1770099667067,75.65435959,103.53,103.47,2.98649316]
[1770099667469,78.64085275,103.53,103.46,2.98649316]
[1770099667668,78.64085275,103.53,103.46,11.69359316]
[1770099667866,75.4898717,103.51,103.46,2.98649316]
[1770099668074,75.4898717,103.51,103.45,2.98649316]
[1770099668472,75.4898717,103.51,103.45,11.69439316]
[1770099668870,78.47636486,103.51,103.45,11.69439316]
[1770099669474,75.4898717,103.51,103.45,2.98649316]
[1770099670977,75.4898717,103.51,103.42,135.4968]
[1770099671184,75.4898717,103.51,103.45,2.98649316]
[1770099671577,75.4898717,103.51,103.46,2.98649316]
[1770099672373,75.4898717,103.51,103.47,2.98649316]
[1770099672783,75.0142673,103.53,103.49,2.98649316]
[1770099673981,75.0142673,103.53,103.47,2.98649316]
[1770099674172,73.4881627,103.51,103.46,2.98649316]
[1770099674376,73.4881627,103.51,103.45,2.98649316]
[1770099674772,82.1917627,103.51,103.45,2.98649316]
[1770099674977,85.17825586,103.51,103.45,2.98649316]
[1770099675673,85.17825586,103.51,103.44,2.98649316]
[1770099676583,82.1917627,103.51,103.43,8.7091]
[1770099678986,74.60301671,103.49,103.43,8.7091]
[1770099679187,74.60301671,103.49,103.41,8.7109]
[1770099680290,74.93593353,103.47,103.41,8.7109]
[1770099683691,74.93593353,103.47,103.4,7.47612514]
[1770099684489,82.26110946,103.45,103.39,8.7125]
[1770099685081,82.26110946,103.45,103.38,16.19012514]
[1770099686184,82.54408827,103.44,103.36,143.04372514]
[1770099686387,73.83498827,103.43,103.36,7.47612514]
[1770099686793,73.83498827,103.41,103.34,7.47612514]
[1770099686992,73.83498827,103.43,103.36,7.47612514]
[1770099687290,73.83498827,103.43,103.38,7.47612514]
[1770099688193,82.75444108,103.45,103.39,8.713]
[1770099691696,29.12,103.49,103.4,7.47612514]
[1770099691888,74.16912852,103.49,103.44,7.47612514]
[1770099692289,74.16912852,103.49,103.42,7.47612514]
[1770099692890,74.22045391,103.47,103.41,8.7113]
[1770099694400,74.22045391,103.47,103.41,16.18837095]
[1770099698500,82.92695391,103.47,103.43,2.99079025]
[1770099699398,82.92695391,103.47,103.44,2.99079025]
[1770099699799,82.92695391,103.47,103.44,9.025e-05]
[1770099700202,82.92695391,103.47,103.43,2.99079025]
[1770099701907,81.59245488,103.49,103.46,2.99079025]
[1770099702101,72.88695488,103.49,103.46,2.99079025]
[1770099702808,521.0762,103.53,103.48,2.99079025]
[1770099703102,135.3528,103.54,103.48,2.99079025]
[1770099704302,8.7021,103.53,103.48,2.99079025]
[1770099704502,8.7021,103.53,103.49,2.99079025]
[1770099704703,8.7021,103.53,103.46,3.14504006]
[1770099704896,48.60505937,103.52,103.49,2.99079025]
[1770099706506,48.60505937,103.52,103.48,2.99079025]
[1770099707408,57.30745937,103.52,103.48,2.99079025]
[1770099707810,57.30745937,103.52,103.47,2.99079025]
[1770099708007,57.30745937,103.52,103.48,2.99079025]
[1770099708814,48.60505937,103.52,103.49,2.99079025]
[1770099709406,48.60505937,103.54,103.49,2.99079025]
[1770099709603,48.60505937,103.54,103.5,2.99079025]
[1770099710310,57.30555937,103.54,103.5,2.99079025]
[1770099710714,57.30555937,103.54,103.49,2.99079025]
[1770099714406,48.60505937,103.54,103.49,2.99079025]
[1770099714615,45.08639618,103.56,103.5,2.99079025]
[1770099715004,48.07718643,103.56,103.5,2.99079025]
[1770099715407,45.08639618,103.56,103.5,2.99079025]
[1770099715611,36.46216062,103.55,103.49,2.99079025]
[1770099716410,36.55589554,103.54,103.48,11.69619025]
[1770099716812,36.55589554,103.54,103.48,8.7054]
[1770099717116,36.55589554,103.54,103.48,11.69619025]
[1770099718019,36.55589554,103.54,103.49,2.99079025]
[1770099718214,36.55589554,103.54,103.5,2.99079025]
[1770099718510,36.55589554,103.54,103.49,8.7047]
[1770099718511,36.55589554,103.54,103.49,11.69549025]
[1770099720712,36.55589554,103.54,103.49,8.7047]
[1770099722214,39.54668579,103.54,103.48,8.7055]
[1770099722410,39.54668579,103.54,103.48,11.69629025]
[1770099722614,36.55589554,103.54,103.48,11.69629025]
[1770099722809,38.14304499,103.52,103.46,11.69759025]
[1770099724117,38.32853249,103.55,103.49,2.99079025]
[1770099724619,41.31932274,103.55,103.48,2.99079025]
[1770099724820,41.31932274,103.54,103.47,2.99079025]
[1770099725319,38.32853249,103.54,103.48,11.69629025]
[1770099725514,38.32853249,103.54,103.48,2.99079025]
[1770099725820,38.32853249,103.54,103.49,2.99079025]
[1770099726227,38.32853249,103.54,103.49,11.69529025]
[1770099728021,38.32853249,103.54,103.49,8.7045]
[1770099728218,38.32853249,103.54,103.5,8.7038]
[1770099728520,38.8872445,103.56,103.52,2.99079025]
[1770099728722,38.8872445,103.58,103.52,2.99079025]
[1770099728922,38.8872445,103.58,103.52,11.69279025]
[1770099729124,38.8872445,103.58,103.53,2.99079025]
[1770099730212,2.99079025,103.6,103.53,2.99079025]
[1770099730213,38.88793432,103.6,103.53,138.34289025]
[1770099730420,41.87872457,103.6,103.53,138.34289025]
[1770099730718,38.88793432,103.6,103.54,138.32879025]
[1770099730919,2.99079025,103.63,103.56,2.99079025]
[1770099731112,8.6919,103.65,103.56,2.99079025]
[1770099731310,2.99079025,103.64,103.57,2.99079025]
[1770099731515,2.99079025,103.64,103.56,135.314]
[1770099731713,2.99079025,103.62,103.56,2.99079025]
[1770099731912,2.99079025,103.62,103.55,463.49279025]
[1770099732217,136.86565828,103.66,103.55,463.49279025]
[1770099732422,7.45820988,103.64,103.55,460.502]
[1770099733026,33.19995006,103.63,103.56,8.6984]
[1770099733222,33.19995006,103.63,103.55,325.18]
[1770099733423,33.19995006,103.63,103.54,135.338]
[1770099734125,33.19995006,103.63,103.55,8.6994]
[1770099734323,33.19995006,103.61,103.53,135.3521]
[1770099735025,33.19995006,103.61,103.52,461.2677]
[1770099735221,33.19995006,103.61,103.51,135.3713]
[1770099735425,33.19995006,103.59,103.53,8.7011]
[1770099735826,33.19995006,103.59,103.52,135.3672]
[1770099736022,33.19995006,103.59,103.53,8.7011]
[1770099736229,33.19995006,103.59,103.53,135.3538]
[1770099737526,33.19995006,103.59,103.54,8.7003]
[1770099742130,40.65815994,103.59,103.51,135.3713]
[1770099742930,40.65815994,103.59,103.48,135.4138]
[1770099742931,32.63612534,103.58,103.48,135.4138]
[1770099743232,28.29326967,103.56,103.48,135.4138]
[1770099743631,28.29326967,103.55,103.47,135.4274]
[1770099744025,28.29326967,103.54,103.46,135.4362]
[1770099744237,28.29326967,103.54,103.48,8.7055]
[1770099744832,28.51758034,103.53,103.46,135.4447]
[1770099745531,28.51758034,103.53,103.47,8.706]
[1770099747330,28.60174543,103.52,103.43,153.3994269]
[1770099747531,28.60174543,103.52,103.44,328.34]
[1770099748132,16.15980988,103.53,103.42,153.4124269]
[1770099748133,28.49252087,103.51,103.42,153.4124269]
[1770099748333,28.49252087,103.51,103.42,135.4883]
[1770099749431,28.4975298,103.5,103.43,8.709]
[1770099750335,28.4975298,103.5,103.43,135.4836]
[1770099751237,28.4975298,103.5,103.45,8.7079]
[1770099751437,28.4975298,103.5,103.44,135.4676]
[1770099752238,28.4975298,103.5,103.43,135.4836]
[1770099753430,28.4975298,103.5,103.45,8.708]
[1770099755437,28.4975298,103.5,103.43,8.7092]
[1770099756436,28.4754341,103.48,103.43,8.7092]
[1770099757241,28.4754341,103.48,103.41,135.5009]
[1770099758042,28.4754341,103.48,103.43,8.7096]
[1770099762342,28.4754341,103.48,103.41,8.7107]
[1770099762544,28.4754341,103.48,103.4,135.5239]
[1770099763344,28.4754341,103.48,103.42,8.7106]
[1770099764645,28.55792437,103.47,103.39,135.5274]
[1770099765644,28.56215933,103.46,103.38,135.5407]
[1770099766440,28.56215933,103.46,103.41,8.7114]
[1770099767242,16.1856874,103.49,103.42,8.7103]
[1770099767441,135.3826,103.51,103.41,135.5065]
[1770099767442,28.61633307,103.48,103.41,135.5065]
[1770099767842,28.61633307,103.5,103.43,135.4852]
[1770099768146,28.61633307,103.5,103.42,329.88]
[1770099768346,28.61633307,103.5,103.41,135.5065]
[1770099768547,28.61512196,103.49,103.43,8.7089]
[1770099769047,28.61512196,103.49,103.43,8.7097]
[1770099769944,28.61512196,103.49,103.41,8.7107]
[1770099769945,28.6188165,103.48,103.41,8.7107]
[1770099770350,28.56420073,103.47,103.42,8.7105]
[1770099771039,28.56420073,103.47,103.41,8.7113]
[1770099773751,28.57976961,103.46,103.41,8.7113]
[1770099778346,31.5728001,103.46,103.41,8.7113]
[1770099780154,28.57976961,103.46,103.42,8.7105]
[1770099780348,31.51947811,103.48,103.41,138.50203049]
[1770099780546,31.51947811,103.48,103.41,2.99303049]
[1770099781253,28.52644762,103.48,103.43,8.7096]
[1770099781458,31.51947811,103.48,103.43,8.7096]
[1770099784457,28.5258189,103.47,103.44,8.7089]
[1770099784959,28.5258189,103.47,103.41,2.99303049]
[1770099786254,28.5258189,103.47,103.42,2.99303049]
[1770099787459,28.5258189,103.47,103.41,11.70443049]